[Event "*** Titled Tuesday Blitz"]
[Site "Chess.com"]
[Date "2020.04.07"]
[Round "3"]
[White "TomPolgar"]
[Black "EugeneRougon"]
[Result "0-1"]
[WhiteElo "2309"]
[BlackElo "2705"]
[TimeControl "180+1"]
[EndTime "13:30:55 PDT"]
[Termination "EugeneRougon won on time"]

1. e4 {[%clk 0:03:00.9]} 1... d6 {[%clk 0:03:00.9]} 2. d4 {[%clk 0:02:59.3]}
2... g6 {[%clk 0:03:01.8]} 3. Nc3 {[%clk 0:02:59.4]} 3... Nf6 {[%clk 0:03:02.7]}
4. f4 {[%clk 0:02:59.2]} 4... Bg7 {[%clk 0:03:02.9]} 5. Nf3 {[%clk 0:02:58.3]}
5... O-O {[%clk 0:03:03.4]} 6. Bd3 {[%clk 0:02:58.1]} 6... Nc6 {[%clk
0:03:03.9]} 7. e5 {[%clk 0:02:49.9]} 7... dxe5 {[%clk 0:03:03.8]} 8. fxe5 {[%clk
0:02:50.8]} 8... Nh5 {[%clk 0:03:04.4]} 9. Be3 {[%clk 0:02:43.9]} 9... Bg4
{[%clk 0:03:03.9]} 10. Be2 {[%clk 0:02:37.9]} 10... f6 {[%clk 0:03:04.3]} 11.
exf6 {[%clk 0:02:35.9]} 11... exf6 {[%clk 0:03:05.2]} 12. d5 {[%clk 0:02:22.9]}
12... Ne7 {[%clk 0:03:00.5]} 13. O-O {[%clk 0:02:15.1]} 13... Nf5 {[%clk
0:02:54.9]} 14. Bc5 {[%clk 0:02:06.9]} 14... Re8 {[%clk 0:02:53.1]} 15. h3
{[%clk 0:01:39.6]} 15... Bxf3 {[%clk 0:02:41.6]} 16. Bxf3 {[%clk 0:01:40.5]}
16... Nhg3 {[%clk 0:02:41.9]} 17. Re1 {[%clk 0:01:37.4]} 17... Qd7 {[%clk
0:02:33.3]} 18. Qd3 {[%clk 0:01:12.1]} 18... Nd6 {[%clk 0:02:15.7]} 19. Bf2
{[%clk 0:01:03.8]} 19... Ngf5 {[%clk 0:02:12.1]} 20. Re6 {[%clk 0:00:57.4]}
20... Nf7 {[%clk 0:02:02]} 21. Rae1 {[%clk 0:00:40.9]} 21... Ne5 {[%clk
0:01:28.9]} 22. Qe2 {[%clk 0:00:41]} 22... Kh8 {[%clk 0:01:11.8]} 23. Be4 {[%clk
0:00:40.9]} 23... Nd6 {[%clk 0:01:08.7]} 24. Bf3 {[%clk 0:00:31.8]} 24... Rxe6
{[%clk 0:01:05]} 25. dxe6 {[%clk 0:00:31.5]} 25... Qxe6 {[%clk 0:01:05.9]} 26.
Bd5 {[%clk 0:00:23.3]} 26... Qd7 {[%clk 0:01:03.6]} 27. Bb3 {[%clk 0:00:15.4]}
27... Re8 {[%clk 0:00:59.2]} 28. Qd2 {[%clk 0:00:11.3]} 28... f5 {[%clk
0:00:40.7]} 29. Bg3 {[%clk 0:00:10.8]} 29... Nc6 {[%clk 0:00:18.5]} 30. Rxe8+
{[%clk 0:00:08.1]} 30... Qxe8 {[%clk 0:00:19.4]} 31. Bxd6 {[%clk 0:00:05.4]}
31... Bd4+ {[%clk 0:00:19.9]} 32. Kh1 {[%clk 0:00:04.1]} 32... cxd6 {[%clk
0:00:20.6]} 33. Nb5 {[%clk 0:00:04]} 33... Qe5 {[%clk 0:00:20]} 34. Nxd4 {[%clk
0:00:03.9]} 34... Qxd4 {[%clk 0:00:19.2]} 35. Qe2 {[%clk 0:00:03.4]} 35... Qe5
{[%clk 0:00:18.4]} 36. Qd2 {[%clk 0:00:03.2]} 36... Kg7 {[%clk 0:00:17.8]} 37.
Qd3 {[%clk 0:00:02.7]} 37... Qd4 {[%clk 0:00:17.5]} 38. Qe2 {[%clk 0:00:02.8]}
38... Qe5 {[%clk 0:00:17.7]} 39. Qd3 {[%clk 0:00:02.4]} 39... Nd4 {[%clk
0:00:18.1]} 40. Bc4 {[%clk 0:00:01.7]} 40... Qe4 {[%clk 0:00:17.4]} 41. Qd2
{[%clk 0:00:01.5]} 41... Qe5 {[%clk 0:00:17.7]} 42. Qc3 {[%clk 0:00:01.8]} 42...
Nc6 {[%clk 0:00:17.7]} 43. Qd3 {[%clk 0:00:02.1]} 43... Kf6 {[%clk 0:00:17.8]}
44. c3 {[%clk 0:00:02.5]} 44... Qe1+ {[%clk 0:00:17.6]} 45. Kh2 {[%clk
0:00:02.4]} 45... Qe5+ {[%clk 0:00:18.5]} 46. Kh1 {[%clk 0:00:02.9]} 46... h5
{[%clk 0:00:19.4]} 47. Bd5 {[%clk 0:00:03.3]} 47... Qe1+ {[%clk 0:00:19.3]} 48.
Kh2 {[%clk 0:00:03.3]} 48... Qe5+ {[%clk 0:00:20.2]} 49. Kh1 {[%clk 0:00:03.8]}
49... h4 {[%clk 0:00:20.8]} 50. Bf3 {[%clk 0:00:03.8]} 50... Qe1+ {[%clk
0:00:20.2]} 51. Kh2 {[%clk 0:00:04.3]} 51... Qg3+ {[%clk 0:00:20.5]} 52. Kh1
{[%clk 0:00:04.9]} 52... Qe5 {[%clk 0:00:21.2]} 53. Qd2 {[%clk 0:00:04.2]} 53...
Nd8 {[%clk 0:00:19]} 54. Qh6 {[%clk 0:00:03.4]} 54... Qe1+ {[%clk 0:00:18.2]}
55. Kh2 {[%clk 0:00:03.5]} 55... Ne6 {[%clk 0:00:19.1]} 56. Qh8+ {[%clk
0:00:02.1]} 56... Kg5 {[%clk 0:00:19.5]} 0-1

[Event "*** Titled Tuesday Blitz"]
[Site "Chess.com"]
[Date "2020.04.07"]
[Round "3"]
[White "THORK"]
[Black "wnstop"]
[Result "1-0"]
[WhiteElo "2337"]
[BlackElo "2578"]
[TimeControl "180+1"]
[EndTime "13:30:56 PDT"]
[Termination "THORK won on time"]

1. d4 {[%clk 0:03:00.9]} 1... Nf6 {[%clk 0:02:14.8]} 2. Bg5 {[%clk 0:02:58.4]}
2... d5 {[%clk 0:02:13.7]} 3. Nd2 {[%clk 0:02:58]} 3... c5 {[%clk 0:02:13]} 4.
e3 {[%clk 0:02:56.5]} 4... Qb6 {[%clk 0:02:13.2]} 5. dxc5 {[%clk 0:02:51.1]}
5... Qxb2 {[%clk 0:02:06.7]} 6. Ngf3 {[%clk 0:02:48.4]} 6... Ne4 {[%clk
0:02:01.2]} 7. Nxe4 {[%clk 0:02:34.6]} 7... dxe4 {[%clk 0:02:02.1]} 8. Nd2
{[%clk 0:02:34.7]} 8... Bg4 {[%clk 0:01:55.4]} 9. Qb1 {[%clk 0:02:28.2]} 9...
Qxb1+ {[%clk 0:01:51.3]} 10. Rxb1 {[%clk 0:02:29.1]} 10... f6 {[%clk 0:01:48.9]}
11. Bh4 {[%clk 0:02:27.4]} 11... Nd7 {[%clk 0:01:38.5]} 12. Nxe4 {[%clk
0:02:24]} 12... Rb8 {[%clk 0:01:15.8]} 13. Bd3 {[%clk 0:01:59.6]} 13... e5
{[%clk 0:01:11.7]} 14. Nd6+ {[%clk 0:01:51.1]} 14... Bxd6 {[%clk 0:00:57.7]} 15.
cxd6 {[%clk 0:01:52]} 15... Kf7 {[%clk 0:00:56.1]} 16. h3 {[%clk 0:01:47]} 16...
Be6 {[%clk 0:00:55.9]} 17. f4 {[%clk 0:01:44.8]} 17... exf4 {[%clk 0:00:54.3]}
18. exf4 {[%clk 0:01:42.7]} 18... Bxa2 {[%clk 0:00:52.1]} 19. Ra1 {[%clk
0:01:41.7]} 19... Bd5 {[%clk 0:00:52.5]} 20. O-O {[%clk 0:01:41.1]} 20... a6
{[%clk 0:00:50.3]} 21. c4 {[%clk 0:01:32.9]} 21... Bc6 {[%clk 0:00:50.1]} 22.
Bf2 {[%clk 0:01:30.2]} 22... Rhe8 {[%clk 0:00:48.4]} 23. Bd4 {[%clk 0:01:29.7]}
23... Be4 {[%clk 0:00:41.3]} 24. Be2 {[%clk 0:01:14.4]} 24... Bxg2 {[%clk
0:00:33.8]} 25. Bg4 {[%clk 0:01:07]} 25... Bc6 {[%clk 0:00:33.3]} 26. Rad1
{[%clk 0:00:58]} 26... g6 {[%clk 0:00:25.1]} 27. f5 {[%clk 0:00:52.2]} 27... Re4
{[%clk 0:00:04.7]} 28. fxg6+ {[%clk 0:00:49.4]} 28... hxg6 {[%clk 0:00:04.5]}
29. Bxd7 {[%clk 0:00:48.7]} 29... Bxd7 {[%clk 0:00:05.4]} 30. Rxf6+ {[%clk
0:00:48.7]} 30... Ke8 {[%clk 0:00:02.5]} 31. Rxg6 {[%clk 0:00:42.1]} 31... Be6
{[%clk 0:00:02.2]} 32. c5 {[%clk 0:00:39.5]} 32... Kd7 {[%clk 0:00:02.7]} 33.
Rg7+ {[%clk 0:00:38.3]} 33... Kc6 {[%clk 0:00:03]} 34. Rc7+ {[%clk 0:00:38]}
34... Kb5 {[%clk 0:00:03.3]} 35. Rg7 {[%clk 0:00:27.9]} 35... Rg8 {[%clk
0:00:04.2]} 36. Rxg8 {[%clk 0:00:28]} 36... Bxg8 {[%clk 0:00:05.1]} 37. d7
{[%clk 0:00:27.3]} 37... Bb3 {[%clk 0:00:05.3]} 38. Rd2 {[%clk 0:00:20.5]} 38...
Re1+ {[%clk 0:00:01.7]} 39. Kf2 {[%clk 0:00:20.3]} 39... Re7 {[%clk 0:00:02]}
40. d8=Q {[%clk 0:00:19.9]} 40... Rf7+ {[%clk 0:00:02.9]} 41. Kg3 {[%clk
0:00:19.8]} 41... Ka4 {[%clk 0:00:03.4]} 42. Qe8+ {[%clk 0:00:19.9]} 42... Kb4
{[%clk 0:00:03.6]} 43. c6 {[%clk 0:00:19.3]} 43... bxc6 {[%clk 0:00:03.2]} 44.
Qxc6 {[%clk 0:00:18.4]} 44... a5 {[%clk 0:00:03.5]} 45. Qc5+ {[%clk 0:00:18.2]}
45... Ka4 {[%clk 0:00:03.8]} 46. Bb2 {[%clk 0:00:17.3]} 46... Be6 {[%clk
0:00:02.8]} 47. Qa3+ {[%clk 0:00:16.7]} 47... Kb5 {[%clk 0:00:03.2]} 48. Qd3+
{[%clk 0:00:16.3]} 48... Bc4 {[%clk 0:00:03.5]} 49. Qe4 {[%clk 0:00:13.8]} 49...
Rc7 {[%clk 0:00:02.1]} 50. Be5 {[%clk 0:00:11.8]} 50... Rc5 {[%clk 0:00:02.4]}
51. Bd6 {[%clk 0:00:11.4]} 51... Rg5+ {[%clk 0:00:02]} 52. Kh4 {[%clk
0:00:11.9]} 52... Rg8 {[%clk 0:00:01.9]} 53. Rb2+ {[%clk 0:00:12]} 1-0

[Event "*** Titled Tuesday Blitz"]
[Site "Chess.com"]
[Date "2020.04.07"]
[Round "3"]
[White "stefan_95"]
[Black "saisree"]
[Result "1-0"]
[WhiteElo "2630"]
[BlackElo "2339"]
[TimeControl "180+1"]
[EndTime "13:30:56 PDT"]
[Termination "stefan_95 won by resignation"]

1. d4 {[%clk 0:03:00.9]} 1... d5 {[%clk 0:02:59.8]} 2. Bf4 {[%clk 0:03:00]} 2...
Nf6 {[%clk 0:02:57.7]} 3. e3 {[%clk 0:02:56.3]} 3... e6 {[%clk 0:02:52.4]} 4.
Nf3 {[%clk 0:02:54.9]} 4... Bd6 {[%clk 0:02:51.6]} 5. Bg3 {[%clk 0:02:54.8]}
5... O-O {[%clk 0:02:50.7]} 6. Bd3 {[%clk 0:02:52.2]} 6... c5 {[%clk 0:02:45.3]}
7. c3 {[%clk 0:02:51.1]} 7... Nc6 {[%clk 0:02:44.9]} 8. Nbd2 {[%clk 0:02:47.4]}
8... b6 {[%clk 0:02:25.8]} 9. Qe2 {[%clk 0:02:44.6]} 9... Bb7 {[%clk 0:02:23.7]}
10. Rd1 {[%clk 0:02:44.6]} 10... Qe7 {[%clk 0:02:15.3]} 11. dxc5 {[%clk
0:02:40]} 11... Bxc5 {[%clk 0:02:06.3]} 12. e4 {[%clk 0:02:37.2]} 12... dxe4
{[%clk 0:02:03]} 13. Nxe4 {[%clk 0:02:38.1]} 13... Nxe4 {[%clk 0:02:02.8]} 14.
Qxe4 {[%clk 0:02:32.4]} 14... f5 {[%clk 0:02:01.4]} 15. Qe2 {[%clk 0:02:25.7]}
15... Rae8 {[%clk 0:01:55.1]} 16. Bc4 {[%clk 0:02:06.4]} 16... Kh8 {[%clk
0:01:51.9]} 17. O-O {[%clk 0:02:06.4]} 17... e5 {[%clk 0:01:45.3]} 18. Rfe1
{[%clk 0:01:30.8]} 18... e4 {[%clk 0:01:38.5]} 19. Nd4 {[%clk 0:01:24]} 19... f4
{[%clk 0:01:24.5]} 20. Ne6 {[%clk 0:01:21.7]} 20... fxg3 {[%clk 0:01:24.5]} 21.
hxg3 {[%clk 0:01:21.9]} 21... Rxf2 {[%clk 0:01:10.2]} 22. Qxe4 {[%clk
0:01:15.3]} 22... Re2+ {[%clk 0:00:44.8]} 23. Nxc5 {[%clk 0:01:14]} 23... Rxe4
{[%clk 0:00:45.2]} 24. Nxe4 {[%clk 0:01:11.4]} 24... g6 {[%clk 0:00:37.9]} 25.
Re2 {[%clk 0:01:07]} 25... Ne5 {[%clk 0:00:36.6]} 26. Nd6 {[%clk 0:01:04.3]}
26... Rd8 {[%clk 0:00:33.1]} 27. Nf7+ {[%clk 0:01:01.4]} 27... Nxf7 {[%clk
0:00:33.4]} 28. Rxe7 {[%clk 0:01:00.3]} 28... Rxd1+ {[%clk 0:00:33.9]} 29. Kh2
{[%clk 0:00:59.8]} 29... Nd6 {[%clk 0:00:33.6]} 30. Rd7 {[%clk 0:00:53]} 30...
Rd2 {[%clk 0:00:32.5]} 31. Bb3 {[%clk 0:00:48.7]} 31... Rxg2+ {[%clk 0:00:29.6]}
32. Kh3 {[%clk 0:00:49.2]} 32... Rd2 {[%clk 0:00:30.2]} 33. g4 {[%clk
0:00:47.4]} 33... a5 {[%clk 0:00:25]} 34. Be6 {[%clk 0:00:43.8]} 34... Bg2+
{[%clk 0:00:24.4]} 35. Kg3 {[%clk 0:00:43.1]} 35... Ne4+ {[%clk 0:00:19.4]} 36.
Kf4 {[%clk 0:00:43.6]} 36... Rxd7 {[%clk 0:00:20]} 37. Bxd7 {[%clk 0:00:44.5]}
37... Nc5 {[%clk 0:00:20.6]} 38. Bb5 {[%clk 0:00:42.1]} 38... Bd5 {[%clk
0:00:20.8]} 39. a3 {[%clk 0:00:38.8]} 39... Kg7 {[%clk 0:00:19.5]} 40. b4 {[%clk
0:00:36]} 40... axb4 {[%clk 0:00:17.9]} 41. cxb4 {[%clk 0:00:36.9]} 41... Nb3
{[%clk 0:00:16]} 42. Ke5 {[%clk 0:00:33.1]} 42... Bf7 {[%clk 0:00:14.3]} 43. g5
{[%clk 0:00:32.1]} 43... h6 {[%clk 0:00:13.6]} 44. gxh6+ {[%clk 0:00:32.4]}
44... Kxh6 {[%clk 0:00:14.5]} 45. Kf6 {[%clk 0:00:33.3]} 45... Bd5 {[%clk
0:00:13.9]} 46. Ke5 {[%clk 0:00:33.1]} 46... Bg8 {[%clk 0:00:13.9]} 47. a4
{[%clk 0:00:29.6]} 47... Kh5 {[%clk 0:00:11.3]} 48. Be2+ {[%clk 0:00:26.6]}
48... Kh4 {[%clk 0:00:10.8]} 49. Bd1 {[%clk 0:00:24.1]} 49... Nd2 {[%clk
0:00:10.1]} 50. Kd4 {[%clk 0:00:20.2]} 50... g5 {[%clk 0:00:08.1]} 51. a5 {[%clk
0:00:20]} 51... bxa5 {[%clk 0:00:07.6]} 52. bxa5 {[%clk 0:00:20.9]} 52... Nc4
{[%clk 0:00:07.3]} 53. a6 {[%clk 0:00:20.9]} 53... Nb6 {[%clk 0:00:07.9]} 54.
Kc5 {[%clk 0:00:20.6]} 54... Nc8 {[%clk 0:00:06.7]} 55. Ba4 {[%clk 0:00:16.6]}
55... g4 {[%clk 0:00:05.3]} 56. Bd7 {[%clk 0:00:17.2]} 56... g3 {[%clk 0:00:04]}
57. Bc6 {[%clk 0:00:17.2]} 57... Na7 {[%clk 0:00:03.6]} 58. Bb7 {[%clk
0:00:15.4]} 58... Be6 {[%clk 0:00:01.6]} 59. Kb6 {[%clk 0:00:16.3]} 59... Nc8+
{[%clk 0:00:01.9]} 60. Kc7 {[%clk 0:00:14.6]} 60... Ne7 {[%clk 0:00:01.8]} 61.
a7 {[%clk 0:00:13.5]} 61... Nf5 {[%clk 0:00:01.9]} 62. a8=Q {[%clk 0:00:13.3]}
1-0

[Event "*** Titled Tuesday Blitz"]
[Site "Chess.com"]
[Date "2020.04.07"]
[Round "3"]
[White "Gentlejimmy7"]
[Black "Sunnika"]
[Result "1-0"]
[WhiteElo "2606"]
[BlackElo "2358"]
[TimeControl "180+1"]
[EndTime "13:30:57 PDT"]
[Termination "Gentlejimmy7 won on time"]

1. d4 {[%clk 0:03:00.9]} 1... Nf6 {[%clk 0:03:00.9]} 2. g3 {[%clk 0:03:01]} 2...
d5 {[%clk 0:03:00]} 3. Bg2 {[%clk 0:03:01]} 3... c6 {[%clk 0:02:59.9]} 4. Nf3
{[%clk 0:03:00.1]} 4... Bf5 {[%clk 0:03:00.1]} 5. c4 {[%clk 0:03:00.1]} 5... e6
{[%clk 0:02:59.7]} 6. Qb3 {[%clk 0:03:00.4]} 6... Qb6 {[%clk 0:02:58.5]} 7. c5
{[%clk 0:03:00.7]} 7... Qc7 {[%clk 0:02:44.3]} 8. Bf4 {[%clk 0:02:59.8]} 8...
Qc8 {[%clk 0:02:44.3]} 9. Nc3 {[%clk 0:03:00.2]} 9... h6 {[%clk 0:02:43.9]} 10.
h3 {[%clk 0:02:50.8]} 10... Ne4 {[%clk 0:02:40.3]} 11. O-O {[%clk 0:02:45.1]}
11... Nd7 {[%clk 0:02:38.8]} 12. a4 {[%clk 0:02:34.6]} 12... Be7 {[%clk
0:02:32.9]} 13. a5 {[%clk 0:02:30]} 13... a6 {[%clk 0:02:24.7]} 14. g4 {[%clk
0:02:26.3]} 14... Bh7 {[%clk 0:02:22.2]} 15. Na4 {[%clk 0:02:24.1]} 15... O-O
{[%clk 0:02:18.5]} 16. Rfd1 {[%clk 0:02:21.6]} 16... Re8 {[%clk 0:02:14]} 17.
Ne5 {[%clk 0:02:18.2]} 17... Nxe5 {[%clk 0:02:11.7]} 18. Nb6 {[%clk 0:02:07.3]}
18... Qd8 {[%clk 0:01:38.5]} 19. Bxe5 {[%clk 0:02:05.4]} 19... Ra7 {[%clk
0:01:33.1]} 20. Ra4 {[%clk 0:01:39.9]} 20... Bh4 {[%clk 0:01:28]} 21. f3 {[%clk
0:01:30.2]} 21... Nf6 {[%clk 0:01:11.5]} 22. Rb4 {[%clk 0:01:20.8]} 22... Nd7
{[%clk 0:01:10.6]} 23. Bd6 {[%clk 0:01:18.5]} 23... Nxb6 {[%clk 0:01:06.1]} 24.
Rxb6 {[%clk 0:01:18.4]} 24... Qd7 {[%clk 0:01:05.5]} 25. Ra1 {[%clk 0:01:17.5]}
25... Bf6 {[%clk 0:00:59.9]} 26. Qc3 {[%clk 0:01:08.1]} 26... Raa8 {[%clk
0:00:53.1]} 27. Ra3 {[%clk 0:01:04.6]} 27... Bd8 {[%clk 0:00:49.8]} 28. Rb4
{[%clk 0:01:02.1]} 28... Be7 {[%clk 0:00:31.7]} 29. Rab3 {[%clk 0:00:49.8]}
29... Ra7 {[%clk 0:00:29.4]} 30. Bg3 {[%clk 0:00:44.2]} 30... Bd8 {[%clk
0:00:28.6]} 31. Ra3 {[%clk 0:00:37.6]} 31... Bg6 {[%clk 0:00:27]} 32. Qb3 {[%clk
0:00:25]} 32... f6 {[%clk 0:00:23.9]} 33. Bb8 {[%clk 0:00:24.6]} 33... Ra8
{[%clk 0:00:16.1]} 34. Rxb7 {[%clk 0:00:24.1]} 34... Qc8 {[%clk 0:00:14.7]} 35.
Bd6 {[%clk 0:00:21.7]} 35... e5 {[%clk 0:00:13.9]} 36. dxe5 {[%clk 0:00:15.3]}
36... fxe5 {[%clk 0:00:14.2]} 37. e4 {[%clk 0:00:13.4]} 37... Bf7 {[%clk
0:00:13.6]} 38. Qb4 {[%clk 0:00:08.8]} 38... d4 {[%clk 0:00:13.2]} 39. Rd3
{[%clk 0:00:08.5]} 39... Bf6 {[%clk 0:00:11.6]} 40. Bf1 {[%clk 0:00:08.2]} 40...
Qe6 {[%clk 0:00:10.6]} 41. Rd2 {[%clk 0:00:04.5]} 41... Rac8 {[%clk 0:00:08.7]}
42. Rc2 {[%clk 0:00:04.7]} 42... h5 {[%clk 0:00:07.4]} 43. Bc4 {[%clk
0:00:05.1]} 43... d3 {[%clk 0:00:05.6]} 44. Bxe6 {[%clk 0:00:04.9]} 44... Bxe6
{[%clk 0:00:05.9]} 45. Rd2 {[%clk 0:00:04.7]} 45... Bg5 {[%clk 0:00:03.5]} 46.
Rxd3 {[%clk 0:00:04.7]} 46... hxg4 {[%clk 0:00:04.4]} 47. hxg4 {[%clk
0:00:05.5]} 47... Bf4 {[%clk 0:00:03.9]} 48. Kg2 {[%clk 0:00:05.7]} 48... Kh7
{[%clk 0:00:03.5]} 49. Rd1 {[%clk 0:00:06.2]} 49... Kg6 {[%clk 0:00:03.6]} 50.
Rh1 {[%clk 0:00:07.1]} 50... Rh8 {[%clk 0:00:03.7]} 51. Qe1 {[%clk 0:00:06.8]}
51... Bc4 {[%clk 0:00:02.2]} 52. Rxh8 {[%clk 0:00:06.5]} 52... Rxh8 {[%clk
0:00:01.7]} 53. Qh1 {[%clk 0:00:07]} 53... Rxh1 {[%clk 0:00:01.5]} 54. Kxh1
{[%clk 0:00:07.9]} 1-0

[Event "*** Titled Tuesday Blitz"]
[Site "Chess.com"]
[Date "2020.04.07"]
[Round "3"]
[White "Yanidze"]
[Black "Sadikhov_Ulvi"]
[Result "0-1"]
[WhiteElo "2438"]
[BlackElo "2713"]
[TimeControl "180+1"]
[EndTime "13:31:00 PDT"]
[Termination "Sadikhov_Ulvi won by resignation"]

1. d4 {[%clk 0:03:00.9]} 1... Nf6 {[%clk 0:02:57.7]} 2. c4 {[%clk 0:03:00.8]}
2... g6 {[%clk 0:02:56.9]} 3. Nc3 {[%clk 0:03:00.9]} 3... Bg7 {[%clk 0:02:57.2]}
4. Nf3 {[%clk 0:03:01.4]} 4... d6 {[%clk 0:02:58.1]} 5. e4 {[%clk 0:03:01.6]}
5... Bg4 {[%clk 0:02:57]} 6. Be2 {[%clk 0:03:00.6]} 6... Nfd7 {[%clk 0:02:54.6]}
7. Be3 {[%clk 0:02:54.6]} 7... O-O {[%clk 0:02:49.2]} 8. Nd2 {[%clk 0:02:45.3]}
8... Bxe2 {[%clk 0:02:44.3]} 9. Qxe2 {[%clk 0:02:46.2]} 9... Nc6 {[%clk
0:02:43.4]} 10. d5 {[%clk 0:02:37.4]} 10... Nd4 {[%clk 0:02:41.7]} 11. Qd1
{[%clk 0:02:36]} 11... c5 {[%clk 0:02:37.4]} 12. Nb3 {[%clk 0:02:02.7]} 12...
Nxb3 {[%clk 0:02:26.8]} 13. Qxb3 {[%clk 0:02:03.6]} 13... a6 {[%clk 0:02:17.7]}
14. O-O {[%clk 0:01:55.7]} 14... Qc7 {[%clk 0:02:15.3]} 15. a4 {[%clk
0:01:52.9]} 15... Rab8 {[%clk 0:02:11.7]} 16. Rad1 {[%clk 0:01:39.6]} 16... Ne5
{[%clk 0:02:07.7]} 17. h3 {[%clk 0:01:34.7]} 17... Qa5 {[%clk 0:02:00.6]} 18. f4
{[%clk 0:01:33.3]} 18... Nd7 {[%clk 0:01:51.3]} 19. Bd2 {[%clk 0:01:28.2]} 19...
Qb4 {[%clk 0:01:41.5]} 20. Qa2 {[%clk 0:01:27.8]} 20... Nb6 {[%clk 0:01:33.3]}
21. Rf3 {[%clk 0:00:18.9]} 21... Nxc4 {[%clk 0:01:28.8]} 22. Be1 {[%clk
0:00:18.3]} 22... Nb6 {[%clk 0:01:05]} 23. a5 {[%clk 0:00:18.7]} 23... Nd7
{[%clk 0:01:04.7]} 24. Kh2 {[%clk 0:00:16.9]} 24... b6 {[%clk 0:00:56.8]} 25.
Na4 {[%clk 0:00:16.3]} 25... Qxe4 {[%clk 0:00:55.9]} 26. axb6 {[%clk 0:00:14.7]}
26... Nxb6 {[%clk 0:00:55.1]} 27. Nc3 {[%clk 0:00:15.2]} 27... Qf5 {[%clk
0:00:47.2]} 28. Qxa6 {[%clk 0:00:14.8]} 28... Qd7 {[%clk 0:00:44.6]} 29. Qe2
{[%clk 0:00:14.3]} 29... Rfe8 {[%clk 0:00:38.9]} 30. Bh4 {[%clk 0:00:14.4]}
30... Na4 {[%clk 0:00:32.1]} 31. Nxa4 {[%clk 0:00:13.1]} 31... Qxa4 {[%clk
0:00:31.6]} 32. f5 {[%clk 0:00:13.6]} 32... Rxb2 {[%clk 0:00:29.4]} 33. Qe1
{[%clk 0:00:12.7]} 33... Be5+ {[%clk 0:00:24.1]} 34. Bg3 {[%clk 0:00:11.8]}
34... Qc2 {[%clk 0:00:22.3]} 35. Rf2 {[%clk 0:00:08.1]} 35... Qxf2 {[%clk
0:00:21.5]} 36. Qxf2 {[%clk 0:00:07.3]} 36... Rxf2 {[%clk 0:00:21.3]} 37. Bxe5
{[%clk 0:00:07.1]} 37... dxe5 {[%clk 0:00:21.7]} 38. fxg6 {[%clk 0:00:06.9]}
38... hxg6 {[%clk 0:00:21.1]} 39. Rc1 {[%clk 0:00:07.8]} 39... Rd2 {[%clk
0:00:19.6]} 40. Rxc5 {[%clk 0:00:07.7]} 40... Rd8 {[%clk 0:00:20.2]} 41. Rc7
{[%clk 0:00:07.9]} 41... R2xd5 {[%clk 0:00:19.8]} 42. Rxe7 {[%clk 0:00:08.4]}
42... Kf8 {[%clk 0:00:18.9]} 43. Ra7 {[%clk 0:00:09]} 43... Re8 {[%clk
0:00:17.8]} 44. Ra3 {[%clk 0:00:08.2]} 44... e4 {[%clk 0:00:18.3]} 45. Re3
{[%clk 0:00:08.9]} 45... Rd3 {[%clk 0:00:17.9]} 46. Re2 {[%clk 0:00:09.8]} 46...
e3 {[%clk 0:00:18.3]} 47. Kg3 {[%clk 0:00:10.7]} 47... Rd2 {[%clk 0:00:18.2]}
48. Re1 {[%clk 0:00:11.3]} 48... e2 {[%clk 0:00:18.4]} 49. Kf2 {[%clk 0:00:12]}
49... Rd1 {[%clk 0:00:18.7]} 50. Rxe2 {[%clk 0:00:12.7]} 50... Rxe2+ {[%clk
0:00:18.9]} 51. Kxe2 {[%clk 0:00:13.6]} 51... Ra1 {[%clk 0:00:19.5]} 52. Kf2
{[%clk 0:00:14]} 52... Ra2+ {[%clk 0:00:20.4]} 53. Kg3 {[%clk 0:00:14.5]} 53...
Kg7 {[%clk 0:00:21.3]} 54. Kh4 {[%clk 0:00:14.8]} 54... Kf6 {[%clk 0:00:22.2]}
55. g3 {[%clk 0:00:14.6]} 55... Ra3 {[%clk 0:00:22.1]} 56. Kg4 {[%clk
0:00:13.5]} 56... Ra4+ {[%clk 0:00:22.3]} 57. Kf3 {[%clk 0:00:13.4]} 57... Kf5
{[%clk 0:00:23]} 58. g4+ {[%clk 0:00:13.2]} 58... Kg5 {[%clk 0:00:22.6]} 59. Kg3
{[%clk 0:00:13.8]} 59... Ra3+ {[%clk 0:00:23.5]} 60. Kg2 {[%clk 0:00:14.3]}
60... Kh4 {[%clk 0:00:23]} 0-1